[Event "FIDE Women's Grand Swiss 2023"]
[Site "Villa Marina, Douglas, Isle of Man, Isle Of Man"]
[Date "2023.10.28"]
[Round "4.1"]
[White "Muzychuk, Anna"]
[Black "Tan, Zhongyi"]
[Result "1/2-1/2"]
[TimeControl "40/90 + 30 + 30s/move"]
[WhiteFideId "14111330"]
[BlackFideId "8603642"]
[WhiteElo "2510"]
[BlackElo "2517"]

1. e4 {[%clk 01:30:56]} {[%emt 00:00:04]} c5 {[%clk 01:30:39]} {[%emt
00:00:21]} 2. Nf3 {[%clk 01:31:19]} {[%emt 00:00:08]} d6 {[%clk 01:31:05]}
{[%emt 00:00:04]} 3. Bb5+ {[%clk 01:31:33]} {[%emt 00:00:16]} Nd7 {[%clk
01:31:28]} {[%emt 00:00:06]} 4. O-O {[%clk 01:31:02]} {[%emt 00:01:02]} a6
{[%clk 01:31:53]} {[%emt 00:00:05]} 5. Bd3 {[%clk 01:31:08]} {[%emt 00:00:24]}
Ngf6 {[%clk 01:32:13]} {[%emt 00:00:09]} 6. c3 {[%clk 01:30:59]} {[%emt
00:00:39]} b5 {[%clk 01:32:30]} {[%emt 00:00:14]} 7. a4 {[%clk 01:30:49]}
{[%emt 00:00:41]} c4 {[%clk 01:32:43]} {[%emt 00:00:16]} 8. Be2 {[%clk
01:28:07]} {[%emt 00:03:12]} Bb7 {[%clk 01:32:32]} {[%emt 00:00:40]} 9. axb5
{[%clk 01:28:00]} {[%emt 00:00:38]} axb5 {[%clk 01:32:58]} {[%emt 00:00:04]} 10.
Rxa8 {[%clk 01:28:22]} {[%emt 00:00:09]} Bxa8 {[%clk 01:28:04]} {[%emt
00:05:22]} 11. Na3 {[%clk 01:27:52]} {[%emt 00:01:01]} Qb8 {[%clk 01:27:07]}
{[%emt 00:01:26]} 12. d3 {[%clk 01:22:14]} {[%emt 00:06:09]} cxd3 {[%clk
01:26:03]} {[%emt 00:01:33]} 13. Bxd3 {[%clk 01:22:13]} {[%emt 00:00:32]} Bxe4
{[%clk 01:23:35]} {[%emt 00:02:57]} 14. Bxb5 {[%clk 01:00:55]} {[%emt
00:21:49]} e5 {[%clk 01:16:16]} {[%emt 00:07:49]} 15. Re1 {[%clk 00:45:20]}
{[%emt 00:16:05]} Qb7 {[%clk 00:48:22]} {[%emt 00:28:23]} 16. Bg5 {[%clk
00:40:08]} {[%emt 00:05:43]} Bxf3 {[%clk 00:42:56]} {[%emt 00:05:55]} 17. Qxf3
{[%clk 00:26:19]} {[%emt 00:14:19]} Qxf3 {[%clk 00:43:13]} {[%emt 00:00:14]} 18.
gxf3 {[%clk 00:26:48]} {[%emt 00:00:01]} Ke7 {[%clk 00:43:24]} {[%emt
00:00:18]} 19. f4 {[%clk 00:22:45]} {[%emt 00:04:34]} h6 {[%clk 00:41:45]}
{[%emt 00:02:08]} 20. Bxf6+ {[%clk 00:18:40]} {[%emt 00:04:36]} gxf6 {[%clk
00:41:36]} {[%emt 00:00:38]} 21. Nc4 {[%clk 00:18:50]} {[%emt 00:00:20]} d5
{[%clk 00:34:17]} {[%emt 00:07:49]} 22. Ne3 {[%clk 00:17:30]} {[%emt 00:01:50]}
Nb6 {[%clk 00:34:40]} {[%emt 00:00:07]} 23. Ra1 {[%clk 00:15:30]} {[%emt
00:02:31]} d4 {[%clk 00:26:45]} {[%emt 00:08:24]} 24. cxd4 {[%clk 00:15:16]}
{[%emt 00:00:44]} exd4 {[%clk 00:26:05]} {[%emt 00:01:10]} 25. Nf5+ {[%clk
00:11:22]} {[%emt 00:04:25]} Ke6 {[%clk 00:26:00]} {[%emt 00:00:34]} 26. Bd3
{[%clk 00:06:14]} {[%emt 00:05:38]} Bd6 {[%clk 00:15:24]} {[%emt 00:11:06]} 27.
Re1+ {[%clk 00:03:59]} {[%emt 00:02:45]} Kd5 {[%clk 00:15:50]} {[%emt
00:00:05]} 28. Be4+ {[%clk 00:04:12]} {[%emt 00:00:17]} Ke6 {[%clk 00:16:17]}
{[%emt 00:00:02]} 29. Bd3+ {[%clk 00:04:05]} {[%emt 00:00:37]} Kd5 {[%clk
00:16:43]} {[%emt 00:00:04]} 30. Be4+ {[%clk 00:04:22]} {[%emt 00:00:13]} Ke6
{[%clk 00:17:12]} {[%emt 00:00:01]} 31. Nxd4+ {[%clk 00:04:41]} {[%emt
00:00:11]} Kd7 {[%clk 00:17:39]} {[%emt 00:00:03]} 32. Bf5+ {[%clk 00:02:16]}
{[%emt 00:02:55]} Kd8 {[%clk 00:18:04]} {[%emt 00:00:05]} 33. Rd1 {[%clk
00:01:13]} {[%emt 00:01:34]} Bb8 {[%clk 00:18:21]} {[%emt 00:00:12]} 34. b4
{[%clk 00:00:56]} {[%emt 00:00:48]} Kc7 {[%clk 00:18:11]} {[%emt 00:00:39]} 35.
Rc1+ {[%clk 00:00:41]} {[%emt 00:00:47]} Kd6 {[%clk 00:18:21]} {[%emt
00:00:18]} 36. Be4 {[%clk 00:00:53]} {[%emt 00:00:19]} Rc8 {[%clk 00:14:55]}
{[%emt 00:03:56]} 37. Nc6 {[%clk 00:00:52]} {[%emt 00:00:31]} f5 {[%clk
00:13:01]} {[%emt 00:02:24]} 38. Rd1+ {[%clk 00:00:57]} {[%emt 00:00:25]} Kc7
{[%clk 00:13:25]} {[%emt 00:00:05]} 39. Bf3 {[%clk 00:00:44]} {[%emt 00:00:44]}
Rg8+ {[%clk 00:13:17]} {[%emt 00:00:37]} 40. Kf1 {[%clk 00:01:01]} {[%emt
00:00:11]} Re8 {[%clk 00:04:44]} {[%emt 00:09:04]} 41. Nd4 {[%clk 00:16:42]}
{[%emt 00:14:49]} Kc8 {[%clk 00:33:45]} {[%emt 00:01:29]} 42. Nxf5 {[%clk
00:12:13]} {[%emt 00:05:00]} Re6 {[%clk 00:33:54]} {[%emt 00:00:19]} 43. Rc1+
{[%clk 00:09:28]} {[%emt 00:03:17]} Kd7 {[%clk 00:33:55]} {[%emt 00:00:28]} 44.
Rd1+ {[%clk 00:08:53]} {[%emt 00:01:06]} Kc8 {[%clk 00:34:15]} {[%emt
00:00:08]} 45. Ne3 {[%clk 00:05:31]} {[%emt 00:03:53]} Rd6 {[%clk 00:33:43]}
{[%emt 00:01:02]} 46. Rc1+ {[%clk 00:05:31]} {[%emt 00:00:30]} Kd8 {[%clk
00:34:06]} {[%emt 00:00:07]} 47. b5 {[%clk 00:04:58]} {[%emt 00:01:04]} Rf6
{[%clk 00:32:42]} {[%emt 00:01:52]} 48. f5 {[%clk 00:04:51]} {[%emt 00:00:38]}
Bxh2 {[%clk 00:31:39]} {[%emt 00:01:33]} 49. Ng4 {[%clk 00:03:52]} {[%emt
00:01:29]} Bf4 {[%clk 00:32:02]} {[%emt 00:00:07]} 50. Rd1+ {[%clk 00:03:45]}
{[%emt 00:00:38]} Rd6 {[%clk 00:32:25]} {[%emt 00:00:06]} 51. Rxd6+ {[%clk
00:04:14]} {[%emt 00:00:02]} Bxd6 {[%clk 00:32:50]} {[%emt 00:00:05]} 52. Nxh6
{[%clk 00:04:41]} {[%emt 00:00:03]} Ke7 {[%clk 00:33:01]} {[%emt 00:00:17]} 53.
Bh5 {[%clk 00:03:34]} {[%emt 00:01:38]} Kf6 {[%clk 00:32:07]} {[%emt 00:01:23]}
54. Nxf7 {[%clk 00:03:48]} {[%emt 00:00:18]} Bc7 {[%clk 00:32:29]} {[%emt
00:00:07]} 55. Bg6 {[%clk 00:03:46]} {[%emt 00:00:33]} Nc4 {[%clk 00:32:19]}
{[%emt 00:00:39]} 56. Nh6 {[%clk 00:01:17]} {[%emt 00:02:59]} Nd6 {[%clk
00:31:14]} {[%emt 00:01:35]} 57. f4 {[%clk 00:00:40]} {[%emt 00:01:07]} Nxb5
{[%clk 00:30:08]} {[%emt 00:01:36]} 58. Ng4+ {[%clk 00:01:07]} {[%emt
00:00:03]} Kg7 {[%clk 00:30:30]} {[%emt 00:00:07]} 59. Be8 {[%clk 00:01:26]}
{[%emt 00:00:13]} Nd6 {[%clk 00:27:31]} {[%emt 00:03:28]} 60. f6+ {[%clk
00:01:29]} {[%emt 00:00:27]} Kf8 {[%clk 00:27:55]} {[%emt 00:00:05]} 61. Bg6
{[%clk 00:01:33]} {[%emt 00:00:27]} Nf7 {[%clk 00:27:21]} {[%emt 00:01:02]} 62.
f5 {[%clk 00:01:37]} {[%emt 00:00:29]} Ne5 {[%clk 00:27:28]} {[%emt 00:00:21]}
63. Nf2 {[%clk 00:01:05]} {[%emt 00:01:03]} Bd8 {[%clk 00:27:49]} {[%emt
00:00:08]} 64. Ne4 {[%clk 00:01:31]} {[%emt 00:00:05]} Nxg6 {[%clk 00:28:06]}
{[%emt 00:00:12]} 65. fxg6 {[%clk 00:01:58]} {[%emt 00:00:04]} Bxf6 {[%clk
00:28:32]} {[%emt 00:00:04]} 66. Nxf6 {[%clk 00:02:25]} {[%emt 00:00:04]} Kg7
{[%clk 00:29:00]} {[%emt 00:00:02]} 67. Ne4 {[%clk 00:02:50]} {[%emt 00:00:05]}
Kxg6 {[%clk 00:29:25]} {[%emt 00:00:05]} 1/2-1/2

[Event "FIDE Women's Grand Swiss 2023"]
[Site "Villa Marina, Douglas, Isle of Man, Isle Of Man"]
[Date "2023.10.28"]
[Round "4.2"]
[White "Assaubayeva, Bibisara"]
[Black "Paehtz, Elisabeth"]
[Result "1-0"]
[TimeControl "40/90 + 30 + 30s/move"]
[WhiteFideId "13708694"]
[BlackFideId "4641833"]
[WhiteElo "2469"]
[BlackElo "2484"]

1. Nf3 {[%clk 01:30:53]} {[%emt 00:00:05]} d5 {[%clk 01:30:35]} {[%emt
00:00:27]} 2. g3 {[%clk 01:31:10]} {[%emt 00:00:13]} c6 {[%clk 01:27:04]}
{[%emt 00:04:00]} 3. c4 {[%clk 01:31:23]} {[%emt 00:00:17]} Nf6 {[%clk
01:27:19]} {[%emt 00:00:16]} 4. Bg2 {[%clk 01:31:41]} {[%emt 00:00:11]} g6
{[%clk 01:27:25]} {[%emt 00:00:24]} 5. Qa4 {[%clk 01:30:22]} {[%emt 00:01:50]}
Nbd7 {[%clk 01:22:36]} {[%emt 00:05:18]} 6. cxd5 {[%clk 01:26:47]} {[%emt
00:04:05]} cxd5 {[%clk 01:20:02]} {[%emt 00:03:05]} 7. O-O {[%clk 01:25:32]}
{[%emt 00:01:44]} Bg7 {[%clk 01:20:24]} {[%emt 00:00:08]} 8. Nc3 {[%clk
01:22:52]} {[%emt 00:03:10]} O-O {[%clk 01:20:04]} {[%emt 00:00:50]} 9. d4
{[%clk 01:21:02]} {[%emt 00:02:19]} a6 {[%clk 01:18:51]} {[%emt 00:01:44]} 10.
Qb3 {[%clk 01:18:47]} {[%emt 00:02:44]} e6 {[%clk 01:17:56]} {[%emt 00:01:26]}
11. a4 {[%clk 01:15:15]} {[%emt 00:04:02]} Nb8 {[%clk 01:13:08]} {[%emt
00:05:18]} 12. Ne5 {[%clk 01:08:06]} {[%emt 00:07:38]} Nfd7 {[%clk 01:12:05]}
{[%emt 00:01:34]} 13. Nxd7 {[%clk 01:02:38]} {[%emt 00:05:58]} Bxd7 {[%clk
01:02:27]} {[%emt 00:10:09]} 14. e4 {[%clk 00:43:38]} {[%emt 00:19:30]} dxe4
{[%clk 00:52:30]} {[%emt 00:10:27]} 15. Nxe4 {[%clk 00:35:09]} {[%emt
00:08:59]} Bc6 {[%clk 00:46:46]} {[%emt 00:06:13]} 16. Rd1 {[%clk 00:34:34]}
{[%emt 00:01:05]} Bd5 {[%clk 00:46:24]} {[%emt 00:00:53]} 17. Qa3 {[%clk
00:33:16]} {[%emt 00:01:47]} Qb6 {[%clk 00:32:09]} {[%emt 00:14:46]} 18. Bg5
{[%clk 00:31:50]} {[%emt 00:01:56]} Bxe4 {[%clk 00:23:40]} {[%emt 00:08:59]} 19.
Bxe4 {[%clk 00:32:09]} {[%emt 00:00:10]} Nc6 {[%clk 00:24:08]} {[%emt
00:00:02]} 20. d5 {[%clk 00:25:13]} {[%emt 00:07:26]} exd5 {[%clk 00:23:55]}
{[%emt 00:00:43]} 21. Bxd5 {[%clk 00:23:59]} {[%emt 00:01:43]} a5 {[%clk
00:17:27]} {[%emt 00:07:00]} 22. Be3 {[%clk 00:21:15]} {[%emt 00:03:14]} Qb4
{[%clk 00:17:44]} {[%emt 00:00:12]} 23. Qa2 {[%clk 00:19:42]} {[%emt 00:02:03]}
Nd4 {[%clk 00:16:17]} {[%emt 00:01:57]} 24. Rd2 {[%clk 00:13:58]} {[%emt
00:06:14]} Nf5 {[%clk 00:13:41]} {[%emt 00:03:06]} 25. Bf4 {[%clk 00:14:06]}
{[%emt 00:00:22]} h6 {[%clk 00:08:31]} {[%emt 00:05:41]} 26. Rad1 {[%clk
00:14:00]} {[%emt 00:00:34]} g5 {[%clk 00:07:30]} {[%emt 00:01:32]} 27. Qb1
{[%clk 00:14:17]} {[%emt 00:00:13]} gxf4 {[%clk 00:06:11]} {[%emt 00:01:49]} 28.
Qxf5 {[%clk 00:14:43]} {[%emt 00:00:05]} fxg3 {[%clk 00:05:19]} {[%emt
00:01:22]} 29. hxg3 {[%clk 00:11:50]} {[%emt 00:03:22]} Rae8 {[%clk 00:05:41]}
{[%emt 00:00:08]} 30. b3 {[%clk 00:11:56]} {[%emt 00:00:24]} Re5 {[%clk
00:04:49]} {[%emt 00:01:21]} 31. Qf3 {[%clk 00:11:48]} {[%emt 00:00:38]} b6
{[%clk 00:05:02]} {[%emt 00:00:18]} 32. Bc4 {[%clk 00:11:54]} {[%emt 00:00:24]}
Kh8 {[%clk 00:04:02]} {[%emt 00:01:29]} 33. Kg2 {[%clk 00:10:35]} {[%emt
00:01:50]} Qe7 {[%clk 00:03:29]} {[%emt 00:01:03]} 34. Rd7 {[%clk 00:10:10]}
{[%emt 00:00:55]} Qf6 {[%clk 00:03:02]} {[%emt 00:00:58]} 35. Qxf6 {[%clk
00:10:18]} {[%emt 00:00:22]} Bxf6 {[%clk 00:03:27]} {[%emt 00:00:04]} 36. R1d6
{[%clk 00:10:13]} {[%emt 00:00:35]} Kg7 {[%clk 00:03:17]} {[%emt 00:00:40]} 37.
Rxb6 {[%clk 00:10:29]} {[%emt 00:00:14]} Rf5 {[%clk 00:01:54]} {[%emt
00:01:53]} 38. Rb5 {[%clk 00:08:52]} {[%emt 00:02:07]} Rxb5 {[%emt 00:01:21]}
39. axb5 {[%clk 00:09:10]} {[%emt 00:00:10]} Bd8 {[%clk 00:00:55]} {[%emt
00:00:39]} 40. Bxf7 {[%clk 00:08:30]} {[%emt 00:01:11]} Rxf7 {[%clk 00:01:11]}
{[%emt 00:00:14]} 41. Rxd8 {[%clk 00:08:58]} {[%emt 00:00:02]} Rf5 {[%clk
00:01:34]} {[%emt 00:00:08]} 42. Rb8 {[%clk 00:08:48]} {[%emt 00:00:39]} Rc5
{[%clk 00:00:45]} {[%emt 00:01:19]} 43. f4 {[%clk 00:07:28]} {[%emt 00:01:50]}
h5 {[%clk 00:26:47]} {[%emt 00:04:29]} 44. b6 {[%clk 00:36:06]} {[%emt
00:01:51]} Rb5 {[%clk 00:20:36]} {[%emt 00:06:41]} 45. b7 {[%clk 00:36:29]}
{[%emt 00:00:07]} Rxb3 {[%clk 00:20:58]} {[%emt 00:00:09]} 46. f5 {[%clk
00:36:54]} {[%emt 00:00:04]} 1-0

[Event "FIDE Women's Grand Swiss 2023"]
[Site "Villa Marina, Douglas, Isle of Man, Isle Of Man"]
[Date "2023.10.28"]
[Round "4.3"]
[White "Muzychuk, Mariya"]
[Black "Vaishali, Rameshbabu"]
[Result "0-1"]
[TimeControl "40/90 + 30 + 30s/move"]
[WhiteFideId "14114550"]
[BlackFideId "5091756"]
[WhiteElo "2519"]
[BlackElo "2448"]

1. e4 {[%clk 01:30:57]} {[%emt 00:00:03]} c5 {[%clk 01:30:23]} {[%emt
00:00:38]} 2. Nf3 {[%clk 01:31:10]} {[%emt 00:00:16]} Nc6 {[%clk 01:30:48]}
{[%emt 00:00:06]} 3. Bb5 {[%clk 01:31:18]} {[%emt 00:00:22]} g6 {[%clk
01:30:59]} {[%emt 00:00:19]} 4. Bxc6 {[%clk 01:30:26]} {[%emt 00:01:21]} bxc6
{[%clk 01:31:16]} {[%emt 00:00:13]} 5. O-O {[%clk 01:30:17]} {[%emt 00:00:39]}
Bg7 {[%clk 01:31:39]} {[%emt 00:00:07]} 6. Re1 {[%clk 01:30:12]} {[%emt
00:00:35]} Qc7 {[%clk 01:31:37]} {[%emt 00:00:32]} 7. c3 {[%clk 01:22:39]}
{[%emt 00:08:04]} d6 {[%clk 01:31:42]} {[%emt 00:00:24]} 8. h3 {[%clk
01:22:05]} {[%emt 00:01:04]} Nf6 {[%clk 01:31:48]} {[%emt 00:00:24]} 9. d4
{[%clk 01:21:57]} {[%emt 00:00:38]} cxd4 {[%clk 01:32:04]} {[%emt 00:00:14]} 10.
cxd4 {[%clk 01:22:23]} {[%emt 00:00:05]} O-O {[%clk 01:32:22]} {[%emt
00:00:12]} 11. Nc3 {[%clk 01:22:39]} {[%emt 00:00:14]} c5 {[%clk 01:29:46]}
{[%emt 00:03:06]} 12. e5 {[%clk 01:18:48]} {[%emt 00:04:21]} dxe5 {[%clk
01:28:56]} {[%emt 00:01:19]} 13. dxe5 {[%clk 01:19:06]} {[%emt 00:00:12]} Rd8
{[%clk 01:26:30]} {[%emt 00:02:57]} 14. Qa4 {[%clk 01:16:26]} {[%emt 00:03:10]}
Nh5 {[%clk 01:18:19]} {[%emt 00:08:40]} 15. Qh4 {[%clk 01:00:39]} {[%emt
00:16:17]} Bb7 {[%clk 01:13:47]} {[%emt 00:05:03]} 16. e6 {[%clk 00:45:37]}
{[%emt 00:15:31]} f5 {[%clk 01:00:05]} {[%emt 00:14:12]} 17. Bg5 {[%clk
00:32:39]} {[%emt 00:13:29]} Bxf3 {[%clk 00:35:41]} {[%emt 00:24:53]} 18. gxf3
{[%clk 00:32:54]} {[%emt 00:00:15]} Qb7 {[%clk 00:35:40]} {[%emt 00:00:32]} 19.
Ne2 {[%clk 00:24:46]} {[%emt 00:08:39]} Qxf3 {[%clk 00:33:34]} {[%emt
00:02:34]} 20. Bxe7 {[%clk 00:22:28]} {[%emt 00:02:48]} Rd2 {[%clk 00:32:55]}
{[%emt 00:01:09]} 21. Bxc5 {[%clk 00:08:42]} {[%emt 00:14:16]} Rxe2 {[%clk
00:32:34]} {[%emt 00:00:52]} 22. Qc4 {[%clk 00:07:18]} {[%emt 00:01:54]} Ng3
{[%clk 00:32:17]} {[%emt 00:00:46]} 23. e7+ {[%clk 00:06:52]} {[%emt 00:00:57]}
Kh8 {[%clk 00:32:42]} {[%emt 00:00:04]} 0-1

[Event "FIDE Women's Grand Swiss 2023"]
[Site "Villa Marina, Douglas, Isle of Man, Isle Of Man"]
[Date "2023.10.28"]
[Round "4.4"]
[White "Fataliyeva, Ulviyya"]
[Black "Goryachkina, Aleksandra"]
[Result "0-1"]
[TimeControl "40/90 + 30 + 30s/move"]
[WhiteFideId "13403052"]
[BlackFideId "4147103"]
[WhiteElo "2393"]
[BlackElo "2558"]

1. e4 {[%clk 01:30:12]} {[%emt 00:00:47]} e5 {[%clk 01:30:41]} {[%emt
00:00:19]} 2. Nf3 {[%clk 01:30:37]} {[%emt 00:00:04]} Nc6 {[%clk 01:30:48]}
{[%emt 00:00:23]} 3. Bb5 {[%clk 01:31:03]} {[%emt 00:00:05]} Nf6 {[%clk
01:30:52]} {[%emt 00:00:26]} 4. O-O {[%clk 01:31:27]} {[%emt 00:00:05]} Nxe4
{[%clk 01:30:54]} {[%emt 00:00:29]} 5. Re1 {[%clk 01:31:52]} {[%emt 00:00:04]}
Nd6 {[%clk 01:30:41]} {[%emt 00:00:44]} 6. Nxe5 {[%clk 01:32:15]} {[%emt
00:00:06]} Be7 {[%clk 01:30:21]} {[%emt 00:00:50]} 7. Bf1 {[%clk 01:32:37]}
{[%emt 00:00:08]} Nxe5 {[%clk 01:25:30]} {[%emt 00:05:22]} 8. Rxe5 {[%clk
01:33:01]} {[%emt 00:00:05]} O-O {[%clk 01:25:47]} {[%emt 00:00:14]} 9. d4
{[%clk 01:33:27]} {[%emt 00:00:04]} Bf6 {[%clk 01:25:53]} {[%emt 00:00:23]} 10.
Re1 {[%clk 01:33:51]} {[%emt 00:00:05]} Re8 {[%clk 01:25:48]} {[%emt 00:00:36]}
11. Nc3 {[%clk 01:34:16]} {[%emt 00:00:05]} Rxe1 {[%clk 01:23:17]} {[%emt
00:03:02]} 12. Qxe1 {[%clk 01:34:42]} {[%emt 00:00:04]} Bxd4 {[%clk 01:22:28]}
{[%emt 00:01:20]} 13. Bf4 {[%clk 01:35:07]} {[%emt 00:00:05]} Ne8 {[%clk
01:21:40]} {[%emt 00:01:17]} 14. Nd5 {[%clk 01:35:31]} {[%emt 00:00:05]} d6
{[%clk 01:20:43]} {[%emt 00:01:27]} 15. Bg5 {[%clk 01:35:56]} {[%emt 00:00:05]}
f6 {[%clk 01:20:31]} {[%emt 00:00:42]} 16. Bh4 {[%clk 01:36:22]} {[%emt
00:00:04]} g5 {[%clk 01:19:11]} {[%emt 00:01:51]} 17. Qe4 {[%clk 01:36:47]}
{[%emt 00:00:04]} Bxb2 {[%clk 01:14:37]} {[%emt 00:05:04]} 18. Re1 {[%clk
01:37:12]} {[%emt 00:00:05]} Be5 {[%clk 01:12:39]} {[%emt 00:02:28]} 19. f4
{[%clk 01:37:37]} {[%emt 00:00:05]} gxh4 {[%clk 01:11:31]} {[%emt 00:01:39]} 20.
fxe5 {[%clk 01:38:02]} {[%emt 00:00:05]} dxe5 {[%clk 01:10:53]} {[%emt
00:01:08]} 21. Bd3 {[%clk 01:37:49]} {[%emt 00:00:42]} Kf8 {[%clk 01:08:37]}
{[%emt 00:02:46]} 22. Ne3 {[%clk 01:38:05]} {[%emt 00:00:14]} Qe7 {[%clk
01:05:57]} {[%emt 00:03:11]} 23. Qxh4 {[%clk 01:38:29]} {[%emt 00:00:06]} f5
{[%clk 01:04:03]} {[%emt 00:02:24]} 24. Qf2 {[%clk 01:22:15]} {[%emt 00:16:43]}
Nd6 {[%clk 00:55:51]} {[%emt 00:08:42]} 25. Nd5 {[%clk 01:06:54]} {[%emt
00:15:51]} Qg7 {[%clk 00:50:50]} {[%emt 00:05:32]} 26. Qh4 {[%clk 00:50:40]}
{[%emt 00:16:43]} Be6 {[%clk 00:43:23]} {[%emt 00:07:57]} 27. Nxc7 {[%clk
00:36:43]} {[%emt 00:14:27]} Qxc7 {[%clk 00:42:30]} {[%emt 00:01:22]} 28. Qh6+
{[%clk 00:36:19]} {[%emt 00:00:54]} Ke7 {[%clk 00:38:59]} {[%emt 00:04:02]} 29.
Rxe5 {[%clk 00:35:52]} {[%emt 00:00:56]} Qb6+ {[%clk 00:38:35]} {[%emt
00:00:54]} 30. Kf1 {[%clk 00:36:03]} {[%emt 00:00:19]} Nf7 {[%clk 00:37:23]}
{[%emt 00:01:43]} 31. Qg7 {[%clk 00:31:47]} {[%emt 00:04:44]} Qd6 {[%clk
00:35:18]} {[%emt 00:02:37]} 32. Re2 {[%clk 00:27:06]} {[%emt 00:05:11]} Qf4+
{[%clk 00:27:35]} {[%emt 00:08:15]} 33. Ke1 {[%clk 00:19:20]} {[%emt 00:08:15]}
Rd8 {[%clk 00:26:06]} {[%emt 00:01:59]} 34. Qxh7 {[%clk 00:18:30]} {[%emt
00:01:20]} Kf6 {[%clk 00:25:11]} {[%emt 00:01:25]} 35. g3 {[%clk 00:14:57]}
{[%emt 00:04:02]} Qb4+ {[%clk 00:24:00]} {[%emt 00:01:41]} 36. Kf1 {[%clk
00:14:26]} {[%emt 00:00:58]} Rh8 {[%clk 00:23:04]} {[%emt 00:01:29]} 37. Rxe6+
{[%clk 00:14:43]} {[%emt 00:00:14]} Kxe6 {[%clk 00:23:30]} {[%emt 00:00:04]} 38.
Qxf5+ {[%clk 00:15:01]} {[%emt 00:00:11]} Ke7 {[%clk 00:23:47]} {[%emt
00:00:13]} 39. h4 {[%clk 00:13:37]} {[%emt 00:01:54]} Rh6 {[%clk 00:23:34]}
{[%emt 00:00:43]} 40. Kg2 {[%clk 00:13:51]} {[%emt 00:00:16]} Qd4 {[%clk
00:21:58]} {[%emt 00:02:06]} 41. Qa5 {[%clk 00:12:36]} {[%emt 00:01:44]} Rd6
{[%clk 00:20:41]} {[%emt 00:01:48]} 42. Qc7+ {[%clk 00:12:25]} {[%emt
00:00:40]} Rd7 {[%clk 00:20:32]} {[%emt 00:00:41]} 43. Qc8 {[%clk 00:12:05]}
{[%emt 00:00:47]} Qd5+ {[%clk 00:20:30]} {[%emt 00:00:35]} 44. Kg1 {[%clk
00:11:12]} {[%emt 00:01:21]} Ne5 {[%clk 00:20:20]} {[%emt 00:00:41]} 45. Be2
{[%clk 00:11:36]} {[%emt 00:00:05]} Qd4+ {[%clk 00:20:29]} {[%emt 00:00:22]} 46.
Kf1 {[%clk 00:11:31]} {[%emt 00:00:34]} Qe3 {[%clk 00:18:34]} {[%emt 00:02:25]}
47. Qg8 {[%clk 00:10:57]} {[%emt 00:01:04]} Rd6 {[%clk 00:16:57]} {[%emt
00:02:08]} 48. Qg7+ {[%clk 00:08:13]} {[%emt 00:03:14]} Nf7 {[%clk 00:17:08]}
{[%emt 00:00:19]} 49. Qg4 {[%clk 00:08:38]} {[%emt 00:00:04]} Rf6+ {[%clk
00:16:41]} {[%emt 00:00:58]} 50. Ke1 {[%clk 00:09:03]} {[%emt 00:00:05]} Rb6
{[%clk 00:16:45]} {[%emt 00:00:25]} 0-1